[Event "Titled Tuesday Blitz May 31 Late 2022"]
[White "Darini, Pouria"]
[Black "Ozdemir, Serhan Berat"]
[WhiteFideId "12502200"]
[BlackFideId "6374611"]
[WhiteElo "2483"]
[BlackElo "1920"]
[Result "0-1"]
[Round "01"]
[TimeControl "180+1"]
[Date "2022.06.01"]
[WhiteClock "0:00:02"]
[BlackClock "0:00:05"]

1. e4 {[%clk 0:03:00]}  c5 {[%clk 0:02:56]} 2. Nf3 {[%clk 0:03:01]}  e6 {[%clk 0:02:56]} 3. d4 {[%clk 0:02:59]}  cxd4 {[%clk 0:02:56]} 4. Nxd4 {[%clk 0:03:00]}  a6 {[%clk 0:02:56]} 5. Bd3 {[%clk 0:02:59]}  Bc5 {[%clk 0:02:55]} 6. Nb3 {[%clk 0:02:59]}  Ba7 {[%clk 0:02:55]} 7. Qg4 {[%clk 0:02:57]}  Nf6 {[%clk 0:02:54]} 8. Qe2 {[%clk 0:02:54]}  Nc6 {[%clk 0:02:50]} 9. Be3 {[%clk 0:02:53]}  d6 {[%clk 0:02:45]} 10. O-O {[%clk 0:02:52]}  O-O {[%clk 0:02:45]} 11. Bxa7 {[%clk 0:02:46]}  Rxa7 {[%clk 0:02:44]} 12. a4 {[%clk 0:02:45]}  Ne5 {[%clk 0:02:41]} 13. Nc3 {[%clk 0:02:40]}  b6 {[%clk 0:02:18]} 14. Rad1 {[%clk 0:02:40]}  Qc7 {[%clk 0:02:03]} 15. f4 {[%clk 0:02:38]}  Nxd3 {[%clk 0:02:03]} 16. Qxd3 {[%clk 0:02:32]}  Rd8 {[%clk 0:02:00]} 17. e5 {[%clk 0:02:32]}  Ne8 {[%clk 0:01:52]} 18. Ne4 {[%clk 0:02:32]}  d5 {[%clk 0:01:37]} 19. Ng5 {[%clk 0:02:32]}  g6 {[%clk 0:01:30]} 20. Nd4 {[%clk 0:02:19]}  h6 {[%clk 0:01:05]} 21. Nh3 {[%clk 0:02:14]}  Ng7 {[%clk 0:01:01]} 22. Nf2 {[%clk 0:02:14]}  h5 {[%clk 0:00:55]} 23. Qg3 {[%clk 0:02:12]}  Nf5 {[%clk 0:00:51]} 24. Nxf5 {[%clk 0:02:06]}  exf5 {[%clk 0:00:52]} 25. c3 {[%clk 0:02:07]}  b5 {[%clk 0:00:50]} 26. Rd4 {[%clk 0:01:49]}  bxa4 {[%clk 0:00:47]} 27. Rxa4 {[%clk 0:01:50]}  Rb7 {[%clk 0:00:45]} 28. Nd3 {[%clk 0:01:50]}  Bd7 {[%clk 0:00:44]} 29. Rd4 {[%clk 0:01:47]}  Bb5 {[%clk 0:00:44]} 30. Rf2 {[%clk 0:01:48]}  Bxd3 {[%clk 0:00:42]} 31. Qxd3 {[%clk 0:01:49]}  Rdb8 {[%clk 0:00:39]} 32. b4 {[%clk 0:01:21]}  Rc8 {[%clk 0:00:32]} 33. Rf3 {[%clk 0:01:04]}  a5 {[%clk 0:00:30]} 34. bxa5 {[%clk 0:01:00]}  Qxa5 {[%clk 0:00:29]} 35. Rxd5 {[%clk 0:01:01]}  Qa2 {[%clk 0:00:27]} 36. Rd8+ {[%clk 0:00:59]}  Rxd8 {[%clk 0:00:25]} 37. Qxd8+ {[%clk 0:01:00]}  Kh7 {[%clk 0:00:22]} 38. h4 {[%clk 0:00:29]}  Qa1+ {[%clk 0:00:20]} 39. Kh2 {[%clk 0:00:28]}  Rb1 {[%clk 0:00:20]} 40. Qd2 {[%clk 0:00:26]}  Rh1+ {[%clk 0:00:16]} 41. Kg3 {[%clk 0:00:26]}  Qg1 {[%clk 0:00:14]} 42. e6 {[%clk 0:00:26]}  fxe6 {[%clk 0:00:09]} 43. Qd7+ {[%clk 0:00:10]}  Kh6 {[%clk 0:00:10]} 44. Qd4 {[%clk 0:00:08]}  Qh2+ {[%clk 0:00:07]} 45. Kf2 {[%clk 0:00:08]}  Qg1+ {[%clk 0:00:07]} 46. Kg3 {[%clk 0:00:08]}  Qh2+ {[%clk 0:00:05]} 47. Kf2 {[%clk 0:00:08]}  Qg1+ {[%clk 0:00:05]} 48. Ke2 {[%clk 0:00:02]}  Qe1+ {[%clk 0:00:04]} 49. Kd3 {[%clk 0:00:03]}  Qb1+ {[%clk 0:00:04]} 50. Kc4 {[%clk 0:00:03]}  Qa2+ {[%clk 0:00:05]} 51. Kc5 {[%clk 0:00:03]}  Qa7+ {[%clk 0:00:05]} 52. Kd6 {[%clk 0:00:03]}  Qb8+ {[%clk 0:00:04]} 53. Ke7 {[%clk 0:00:03]}  Qg8 {[%clk 0:00:03]} 54. Qf6 {[%clk 0:00:03]}  Rd1 {[%clk 0:00:03]} 55. Qg5+ {[%clk 0:00:03]}  Kh7 {[%clk 0:00:04]} 56. Kf6 {[%clk 0:00:03]}  Qd8+ {[%clk 0:00:04]} 57. Kf7 {[%clk 0:00:01]}  Rd7+ {[%clk 0:00:04]} 58. Kxe6 {[%clk 0:00:02]}  Qe8+ {[%clk 0:00:04]} 59. Kf6 {[%clk 0:00:02]}  Rf7# {[%clk 0:00:05]} 0-1


[Site "https://www.chess.com"]

[Event "Titled Tuesday Blitz May 31 Late 2022"]
[White "Demchenko, Anton"]
[Black "Hosseinzadeh, Nima"]
[WhiteFideId "4160258"]
[BlackFideId "12505323"]
[WhiteElo "2539"]
[BlackElo "2066"]
[Result "1-0"]
[Round "01"]
[TimeControl "180+1"]
[Date "2022.05.31"]
[WhiteClock "0:01:58"]
[BlackClock "0:01:09"]

1. e4 {[%clk 0:03:00]}  e5 {[%clk 0:02:58]} 2. Nf3 {[%clk 0:02:54]}  Nc6 {[%clk 0:02:58]} 3. Bc4 {[%clk 0:02:54]}  Bc5 {[%clk 0:02:57]} 4. d3 {[%clk 0:02:54]}  Nf6 {[%clk 0:02:57]} 5. Bg5 {[%clk 0:02:54]}  h6 {[%clk 0:02:55]} 6. Bh4 {[%clk 0:02:55]}  d6 {[%clk 0:02:46]} 7. c3 {[%clk 0:02:54]}  a6 {[%clk 0:02:37]} 8. Nbd2 {[%clk 0:02:54]}  Be6 {[%clk 0:02:35]} 9. O-O {[%clk 0:02:43]}  O-O {[%clk 0:02:32]} 10. b4 {[%clk 0:02:41]}  Ba7 {[%clk 0:02:31]} 11. a4 {[%clk 0:02:42]}  Bxc4 {[%clk 0:02:21]} 12. Nxc4 {[%clk 0:02:42]}  b5 {[%clk 0:02:20]} 13. Ne3 {[%clk 0:02:32]}  g5 {[%clk 0:01:52]} 14. Nxg5 {[%clk 0:02:29]}  hxg5 {[%clk 0:01:53]} 15. Bxg5 {[%clk 0:02:30]}  Kh7 {[%clk 0:01:29]} 16. Ng4 {[%clk 0:02:13]}  Nxg4 {[%clk 0:01:08]} 17. Bxd8 {[%clk 0:02:13]}  Rg8 {[%clk 0:01:09]} 18. Bh4 {[%clk 0:02:00]}  Bb6 {[%clk 0:01:09]} 19. axb5 {[%clk 0:01:58]} 1-0


[Site "https://www.chess.com"]

[Event "Titled Tuesday Blitz May 31 Late 2022"]
[White "Ferreira, Vitor Hugo Vieira"]
[Black "Donchenko, Alexander"]
[WhiteFideId "2119765"]
[BlackFideId "24603295"]
[WhiteElo "2165"]
[BlackElo "2572"]
[Result "0-1"]
[Round "01"]
[TimeControl "180+1"]
[Date "2022.05.31"]
[WhiteClock "0:00:14"]
[BlackClock "0:02:38"]

1. e4 {[%clk 0:02:51]}  c6 {[%clk 0:02:57]} 2. d3 {[%clk 0:02:46]}  d5 {[%clk 0:02:58]} 3. Nf3 {[%clk 0:02:12]}  g6 {[%clk 0:02:55]} 4. exd5 {[%clk 0:02:02]}  cxd5 {[%clk 0:02:55]} 5. g3 {[%clk 0:01:27]}  Nc6 {[%clk 0:02:50]} 6. Bg2 {[%clk 0:01:26]}  Bg7 {[%clk 0:02:50]} 7. O-O {[%clk 0:01:26]}  e5 {[%clk 0:02:50]} 8. Re1 {[%clk 0:01:16]}  Nge7 {[%clk 0:02:50]} 9. c3 {[%clk 0:01:05]}  O-O {[%clk 0:02:49]} 10. a4 {[%clk 0:00:58]}  h6 {[%clk 0:02:45]} 11. h3 {[%clk 0:00:49]}  Be6 {[%clk 0:02:45]} 12. b4 {[%clk 0:00:49]}  a6 {[%clk 0:02:43]} 13. g4 {[%clk 0:00:15]}  e4 {[%clk 0:02:41]} 14. dxe4 {[%clk 0:00:14]}  Nxb4 {[%clk 0:02:41]} 15. exd5 {[%clk 0:00:14]}  Bxd5 {[%clk 0:02:39]} 16. cxb4 {[%clk 0:00:14]}  Bxa1 {[%clk 0:02:38]} 0-1


[Site "https://www.chess.com"]

[Event "Titled Tuesday Blitz May 31 Late 2022"]
[White "Garcia, Gabriel Gonzaga"]
[Black "Murzin, Volodar"]
[WhiteFideId "2138956"]
[BlackFideId "44155573"]
[WhiteElo "2240"]
[BlackElo "2585"]
[Result "0-1"]
[Round "01"]
[TimeControl "180+1"]
[Date "2022.05.31"]
[WhiteClock "0:00:29"]
[BlackClock "0:00:13"]

1. e4 {[%clk 0:02:59]}  c6 {[%clk 0:02:58]} 2. Nf3 {[%clk 0:02:57]}  d5 {[%clk 0:02:53]} 3. Nc3 {[%clk 0:02:58]}  Bg4 {[%clk 0:02:44]} 4. Be2 {[%clk 0:02:51]}  Nf6 {[%clk 0:02:19]} 5. d3 {[%clk 0:02:50]}  Nbd7 {[%clk 0:01:51]} 6. O-O {[%clk 0:02:34]}  e5 {[%clk 0:01:32]} 7. Bg5 {[%clk 0:02:33]}  Bxf3 {[%clk 0:01:22]} 8. Bxf3 {[%clk 0:02:33]}  d4 {[%clk 0:01:23]} 9. Ne2 {[%clk 0:02:33]}  Be7 {[%clk 0:01:21]} 10. c3 {[%clk 0:02:33]}  c5 {[%clk 0:01:20]} 11. cxd4 {[%clk 0:02:33]}  cxd4 {[%clk 0:01:20]} 12. Rc1 {[%clk 0:02:33]}  O-O {[%clk 0:01:20]} 13. Ng3 {[%clk 0:02:16]}  g6 {[%clk 0:01:14]} 14. Qb3 {[%clk 0:01:57]}  Nc5 {[%clk 0:01:00]} 15. Qd1 {[%clk 0:01:53]}  Ne6 {[%clk 0:00:58]} 16. Bh6 {[%clk 0:01:52]}  Re8 {[%clk 0:00:57]} 17. Bg4 {[%clk 0:01:51]}  Nf4 {[%clk 0:00:48]} 18. Bg5 {[%clk 0:01:30]}  Nxg4 {[%clk 0:00:31]} 19. Bxe7 {[%clk 0:01:31]}  Nxf2 {[%clk 0:00:31]} 20. Bxd8 {[%clk 0:01:13]}  Nxd1 {[%clk 0:00:29]} 21. Rfxd1 {[%clk 0:00:57]}  Rexd8 {[%clk 0:00:27]} 22. Rc7 {[%clk 0:00:57]}  Rab8 {[%clk 0:00:28]} 23. Re7 {[%clk 0:00:40]}  Re8 {[%clk 0:00:20]} 24. Rd7 {[%clk 0:00:39]}  Rec8 {[%clk 0:00:21]} 25. Re7 {[%clk 0:00:35]}  f6 {[%clk 0:00:19]} 26. Rd2 {[%clk 0:00:31]}  Rc1+ {[%clk 0:00:15]} 27. Kf2 {[%clk 0:00:31]}  Rbc8 {[%clk 0:00:12]} 28. Ne2 {[%clk 0:00:29]}  R8c2 {[%clk 0:00:13]} 0-1


[Site "https://www.chess.com"]

[Event "Titled Tuesday Blitz May 31 Late 2022"]
[White "Girsh, Daniel"]
[Black "Tristan, Leonardo"]
[WhiteFideId "30949190"]
[BlackFideId "113816"]
[WhiteElo "2452"]
[BlackElo "2404"]
[Result "0-1"]
[Round "01"]
[TimeControl "180+1"]
[Date "2022.06.01"]
[WhiteClock "0:00:19"]
[BlackClock "0:00:33"]

1. d4 {[%clk 0:03:00]}  d5 {[%clk 0:02:59]} 2. c4 {[%clk 0:03:00]}  e6 {[%clk 0:02:59]} 3. Nf3 {[%clk 0:03:01]}  Nf6 {[%clk 0:02:59]} 4. g3 {[%clk 0:03:01]}  Be7 {[%clk 0:03:00]} 5. Bg2 {[%clk 0:03:01]}  O-O {[%clk 0:03:00]} 6. O-O {[%clk 0:03:02]}  dxc4 {[%clk 0:03:00]} 7. Qc2 {[%clk 0:03:02]}  a6 {[%clk 0:03:01]} 8. a4 {[%clk 0:03:01]}  Bd7 {[%clk 0:03:01]} 9. Qxc4 {[%clk 0:03:01]}  Bc6 {[%clk 0:03:01]} 10. Bf4 {[%clk 0:03:01]}  Nbd7 {[%clk 0:03:01]} 11. Nc3 {[%clk 0:03:00]}  Bd6 {[%clk 0:02:57]} 12. Rfd1 {[%clk 0:02:56]}  a5 {[%clk 0:02:54]} 13. Rac1 {[%clk 0:02:51]}  Bxf4 {[%clk 0:02:52]} 14. gxf4 {[%clk 0:02:50]}  Bxf3 {[%clk 0:02:52]} 15. Bxf3 {[%clk 0:02:49]}  c6 {[%clk 0:02:53]} 16. e3 {[%clk 0:02:48]}  Qb6 {[%clk 0:02:53]} 17. Rd2 {[%clk 0:02:46]}  Qb4 {[%clk 0:02:52]} 18. Qe2 {[%clk 0:02:42]}  Nb6 {[%clk 0:02:49]} 19. Qd1 {[%clk 0:02:40]}  Nc4 {[%clk 0:02:46]} 20. Rdc2 {[%clk 0:02:33]}  Nxb2 {[%clk 0:02:35]} 21. Qe2 {[%clk 0:02:33]}  Nxa4 {[%clk 0:02:36]} 22. Na2 {[%clk 0:02:30]}  Qa3 {[%clk 0:02:25]} 23. Rb1 {[%clk 0:02:16]}  Rab8 {[%clk 0:02:24]} 24. Qc4 {[%clk 0:02:11]}  b5 {[%clk 0:02:07]} 25. Qxc6 {[%clk 0:02:07]}  b4 {[%clk 0:02:08]} 26. Nc1 {[%clk 0:01:31]}  Nc3 {[%clk 0:01:32]} 27. Rb3 {[%clk 0:01:27]}  Qa1 {[%clk 0:01:33]} 28. Qd6 {[%clk 0:01:00]}  Rbc8 {[%clk 0:01:04]} 29. Kg2 {[%clk 0:00:57]}  Nce4 {[%clk 0:00:58]} 30. Rxc8 {[%clk 0:00:25]}  Nxd6 {[%clk 0:00:57]} 31. Rc6 {[%clk 0:00:24]}  Nde4 {[%clk 0:00:52]} 32. Nd3 {[%clk 0:00:24]}  Nd2 {[%clk 0:00:49]} 33. Rc1 {[%clk 0:00:21]}  Qa4 {[%clk 0:00:42]} 34. Rb2 {[%clk 0:00:20]}  Nxf3 {[%clk 0:00:42]} 35. Kxf3 {[%clk 0:00:20]}  Nd5 {[%clk 0:00:41]} 36. Nc5 {[%clk 0:00:20]}  Qc6 {[%clk 0:00:40]} 37. e4 {[%clk 0:00:20]}  Nc3 {[%clk 0:00:40]} 38. Rbc2 {[%clk 0:00:20]}  f5 {[%clk 0:00:39]} 39. Ke3 {[%clk 0:00:20]}  fxe4 {[%clk 0:00:36]} 40. Ra1 {[%clk 0:00:18]}  Nd5+ {[%clk 0:00:36]} 41. Ke2 {[%clk 0:00:17]}  Nxf4+ {[%clk 0:00:36]} 42. Kf1 {[%clk 0:00:18]}  e3 {[%clk 0:00:35]} 43. f3 {[%clk 0:00:18]}  Qxf3+ {[%clk 0:00:35]} 44. Ke1 {[%clk 0:00:19]}  Qh1# {[%clk 0:00:33]} 0-1


[Site "https://www.chess.com"]

[Event "Titled Tuesday Blitz May 31 Late 2022"]
[White "Goltsev, Dmitry"]
[Black "Sliwicki, Damian"]
[WhiteFideId "24176710"]
[BlackFideId "1127128"]
[WhiteElo "2258"]
[BlackElo "2125"]
[Result "0-1"]
[Round "01"]
[TimeControl "180+1"]
[Date "2022.06.01"]
[WhiteClock "0:00:07"]
[BlackClock "0:00:14"]

1. e4 {[%clk 0:02:57]}  c5 {[%clk 0:02:56]} 2. Nf3 {[%clk 0:02:57]}  g6 {[%clk 0:02:56]} 3. d4 {[%clk 0:02:58]}  cxd4 {[%clk 0:02:56]} 4. Qxd4 {[%clk 0:02:59]}  Nf6 {[%clk 0:02:56]} 5. e5 {[%clk 0:02:59]}  Nc6 {[%clk 0:02:56]} 6. Qc3 {[%clk 0:02:59]}  Nd5 {[%clk 0:02:57]} 7. Qb3 {[%clk 0:02:59]}  Nc7 {[%clk 0:02:47]} 8. Bc4 {[%clk 0:02:57]}  Ne6 {[%clk 0:02:46]} 9. Bd2 {[%clk 0:02:46]}  Bg7 {[%clk 0:02:45]} 10. Bc3 {[%clk 0:02:44]}  Na5 {[%clk 0:02:37]} 11. Qa4 {[%clk 0:02:39]}  Nxc4 {[%clk 0:02:35]} 12. Qxc4 {[%clk 0:02:40]}  O-O {[%clk 0:02:35]} 13. O-O {[%clk 0:02:39]}  b6 {[%clk 0:02:27]} 14. Nbd2 {[%clk 0:02:38]}  Bb7 {[%clk 0:02:27]} 15. Rad1 {[%clk 0:02:38]}  Rc8 {[%clk 0:02:27]} 16. Qa4 {[%clk 0:02:37]}  Qc7 {[%clk 0:02:21]} 17. Ne4 {[%clk 0:02:35]}  Rfd8 {[%clk 0:02:15]} 18. Rfe1 {[%clk 0:02:28]}  Bc6 {[%clk 0:02:03]} 19. Qa6 {[%clk 0:02:26]}  Bxe4 {[%clk 0:02:01]} 20. Rxe4 {[%clk 0:02:27]}  Nc5 {[%clk 0:02:02]} 21. Qe2 {[%clk 0:02:24]}  Nxe4 {[%clk 0:02:02]} 22. Qxe4 {[%clk 0:02:25]}  Qc4 {[%clk 0:01:58]} 23. Qe1 {[%clk 0:02:16]}  Qxa2 {[%clk 0:01:52]} 24. Ra1 {[%clk 0:01:57]}  Qc4 {[%clk 0:01:48]} 25. Ng5 {[%clk 0:01:41]}  a5 {[%clk 0:01:43]} 26. g3 {[%clk 0:01:36]}  a4 {[%clk 0:01:33]} 27. Qe3 {[%clk 0:01:26]}  Bh6 {[%clk 0:01:26]} 28. h4 {[%clk 0:01:23]}  b5 {[%clk 0:01:22]} 29. Qd2 {[%clk 0:01:11]}  b4 {[%clk 0:00:47]} 30. Bxb4 {[%clk 0:01:04]}  f6 {[%clk 0:00:47]} 31. Bxe7 {[%clk 0:00:57]}  fxg5 {[%clk 0:00:48]} 32. Bxd8 {[%clk 0:00:55]}  Rxd8 {[%clk 0:00:48]} 33. hxg5 {[%clk 0:00:54]}  Bg7 {[%clk 0:00:48]} 34. f4 {[%clk 0:00:48]}  Bf8 {[%clk 0:00:42]} 35. Kh2 {[%clk 0:00:41]}  Rc8 {[%clk 0:00:42]} 36. Qxd7 {[%clk 0:00:33]}  Qxc2+ {[%clk 0:00:41]} 37. Kh3 {[%clk 0:00:32]}  Rc7 {[%clk 0:00:36]} 38. Qe6+ {[%clk 0:00:30]}  Rf7 {[%clk 0:00:34]} 39. Rf1 {[%clk 0:00:11]}  Kg7 {[%clk 0:00:34]} 40. Qd5 {[%clk 0:00:08]}  Qxb2 {[%clk 0:00:31]} 41. e6 {[%clk 0:00:08]}  Re7 {[%clk 0:00:28]} 42. f5 {[%clk 0:00:09]}  gxf5 {[%clk 0:00:25]} 43. Qxf5 {[%clk 0:00:10]}  Qb8 {[%clk 0:00:17]} 44. Qf6+ {[%clk 0:00:10]}  Kg8 {[%clk 0:00:17]} 45. g6 {[%clk 0:00:10]}  hxg6 {[%clk 0:00:17]} 46. Qxg6+ {[%clk 0:00:11]}  Rg7 {[%clk 0:00:18]} 47. Qd3 {[%clk 0:00:08]}  Rh7+ {[%clk 0:00:18]} 48. Kg2 {[%clk 0:00:08]}  Qb2+ {[%clk 0:00:18]} 49. Rf2 {[%clk 0:00:08]}  Qb7+ {[%clk 0:00:19]} 50. Rf3 {[%clk 0:00:07]}  Qb2+ {[%clk 0:00:18]} 51. Rf2 {[%clk 0:00:08]}  Rh2+ {[%clk 0:00:19]} 52. Kxh2 {[%clk 0:00:08]}  Qxf2+ {[%clk 0:00:19]} 53. Kh3 {[%clk 0:00:08]}  Qf6 {[%clk 0:00:17]} 54. Qc4 {[%clk 0:00:08]}  Qh6+ {[%clk 0:00:17]} 55. Kg2 {[%clk 0:00:08]}  Qd2+ {[%clk 0:00:16]} 56. Kf3 {[%clk 0:00:08]}  Be7 {[%clk 0:00:13]} 57. Qxa4 {[%clk 0:00:06]}  Qd3+ {[%clk 0:00:13]} 58. Kg2 {[%clk 0:00:05]}  Qe2+ {[%clk 0:00:13]} 59. Kg1 {[%clk 0:00:05]}  Qxe6 {[%clk 0:00:14]} 60. Qa8+ {[%clk 0:00:04]}  Kg7 {[%clk 0:00:13]} 61. Qg2 {[%clk 0:00:05]}  Bc5+ {[%clk 0:00:13]} 62. Kh2 {[%clk 0:00:06]}  Qh6+ {[%clk 0:00:13]} 63. Qh3 {[%clk 0:00:06]}  Qd2+ {[%clk 0:00:14]} 64. Qg2 {[%clk 0:00:06]}  Qg5 {[%clk 0:00:15]} 65. Qb7+ {[%clk 0:00:06]}  Kh6 {[%clk 0:00:14]} 66. Qf3 {[%clk 0:00:07]}  Qd2+ {[%clk 0:00:13]} 67. Kh3 {[%clk 0:00:07]}  Be3 {[%clk 0:00:12]} 68. Qf6+ {[%clk 0:00:06]}  Kh7 {[%clk 0:00:12]} 69. Qf7+ {[%clk 0:00:07]}  Kh6 {[%clk 0:00:12]} 70. g4 {[%clk 0:00:07]}  Bg5 {[%clk 0:00:10]} 71. Qe6+ {[%clk 0:00:04]}  Kg7 {[%clk 0:00:10]} 72. Qf5 {[%clk 0:00:05]}  Qe3+ {[%clk 0:00:09]} 73. Kg2 {[%clk 0:00:05]}  Bf4 {[%clk 0:00:09]} 74. Qd7+ {[%clk 0:00:06]}  Kg6 {[%clk 0:00:09]} 75. Qf5+ {[%clk 0:00:06]}  Kh6 {[%clk 0:00:09]} 76. Qf6+ {[%clk 0:00:05]}  Kh7 {[%clk 0:00:09]} 77. Qf7+ {[%clk 0:00:06]}  Kh8 {[%clk 0:00:09]} 78. Qf8+ {[%clk 0:00:06]}  Kh7 {[%clk 0:00:10]} 79. Qf5+ {[%clk 0:00:06]}  Kg7 {[%clk 0:00:09]} 80. Qd7+ {[%clk 0:00:07]}  Kf6 {[%clk 0:00:09]} 81. Qf5+ {[%clk 0:00:07]}  Ke7 {[%clk 0:00:10]} 82. Qh7+ {[%clk 0:00:07]}  Kd6 {[%clk 0:00:10]} 83. Qg6+ {[%clk 0:00:08]}  Ke5 {[%clk 0:00:10]} 84. Qe8+ {[%clk 0:00:08]}  Kd4 {[%clk 0:00:11]} 85. Qa4+ {[%clk 0:00:07]}  Kd3 {[%clk 0:00:11]} 86. Qb5+ {[%clk 0:00:07]}  Ke4 {[%clk 0:00:11]} 87. Qf5+ {[%clk 0:00:06]}  Kd4 {[%clk 0:00:11]} 88. Qd7+ {[%clk 0:00:06]}  Kc4 {[%clk 0:00:11]} 89. Qc6+ {[%clk 0:00:06]}  Kb3 {[%clk 0:00:10]} 90. Kf1 {[%clk 0:00:05]}  Qh3+ {[%clk 0:00:10]} 91. Qg2 {[%clk 0:00:04]}  Qd3+ {[%clk 0:00:09]} 92. Qe2 {[%clk 0:00:04]}  Qh3+ {[%clk 0:00:09]} 93. Kg1 {[%clk 0:00:04]}  Be3+ {[%clk 0:00:09]} 94. Qxe3+ {[%clk 0:00:04]}  Qxe3+ {[%clk 0:00:08]} 95. Kg2 {[%clk 0:00:05]}  Qg5 {[%clk 0:00:09]} 96. Kh3 {[%clk 0:00:06]}  Kc3 {[%clk 0:00:10]} 97. Kg3 {[%clk 0:00:07]}  Kd3 {[%clk 0:00:11]} 98. Kf3 {[%clk 0:00:08]}  Qe3+ {[%clk 0:00:10]} 99. Kg2 {[%clk 0:00:07]}  Ke2 {[%clk 0:00:11]} 100. g5 {[%clk 0:00:06]}  Qf3+ {[%clk 0:00:12]} 101. Kh2 {[%clk 0:00:07]}  Kf2 {[%clk 0:00:13]} 102. g6 {[%clk 0:00:07]}  Qg2# {[%clk 0:00:14]} 0-1


[Site "https://www.chess.com"]

[Event "Titled Tuesday Blitz May 31 Late 2022"]
[White "Ingebretsen, Jens E"]
[Black "Drygalov, Andrey"]
[WhiteFideId "1522965"]
[BlackFideId "24171735"]
[WhiteElo "2036"]
[BlackElo "2540"]
[Result "0-1"]
[Round "01"]
[TimeControl "180+1"]
[Date "2022.05.31"]
[WhiteClock "0:00:13"]
[BlackClock "0:00:45"]

1. c4 {[%clk 0:02:58]}  e5 {[%clk 0:02:59]} 2. Nc3 {[%clk 0:02:58]}  Nf6 {[%clk 0:02:59]} 3. Nf3 {[%clk 0:02:58]}  Nc6 {[%clk 0:02:59]} 4. g3 {[%clk 0:02:59]}  d5 {[%clk 0:02:59]} 5. cxd5 {[%clk 0:02:59]}  Nxd5 {[%clk 0:03:00]} 6. Bg2 {[%clk 0:03:00]}  Nb6 {[%clk 0:03:01]} 7. Rb1 {[%clk 0:03:00]}  a5 {[%clk 0:03:00]} 8. a3 {[%clk 0:03:00]}  a4 {[%clk 0:02:57]} 9. d3 {[%clk 0:03:00]}  Be7 {[%clk 0:02:57]} 10. Be3 {[%clk 0:03:00]}  O-O {[%clk 0:02:47]} 11. Bxb6 {[%clk 0:02:59]}  cxb6 {[%clk 0:02:48]} 12. Nxa4 {[%clk 0:02:56]}  b5 {[%clk 0:02:49]} 13. Nc3 {[%clk 0:02:55]}  b4 {[%clk 0:02:49]} 14. axb4 {[%clk 0:02:54]}  Bxb4 {[%clk 0:02:50]} 15. O-O {[%clk 0:02:52]}  Bf5 {[%clk 0:02:49]} 16. Qb3 {[%clk 0:02:45]}  Qd7 {[%clk 0:02:45]} 17. Nxe5 {[%clk 0:02:35]}  Nxe5 {[%clk 0:02:36]} 18. Qxb4 {[%clk 0:02:35]}  Nc6 {[%clk 0:02:31]} 19. Qf4 {[%clk 0:02:21]}  Rac8 {[%clk 0:02:30]} 20. Nd5 {[%clk 0:01:33]}  Rce8 {[%clk 0:02:21]} 21. e4 {[%clk 0:01:25]}  Be6 {[%clk 0:02:21]} 22. Rfe1 {[%clk 0:01:12]}  f5 {[%clk 0:02:05]} 23. Ne3 {[%clk 0:01:02]}  fxe4 {[%clk 0:01:59]} 24. Qxe4 {[%clk 0:01:03]}  Ba2 {[%clk 0:01:59]} 25. Qa4 {[%clk 0:00:23]}  Bxb1 {[%clk 0:01:58]} 26. Rxb1 {[%clk 0:00:24]}  Qxd3 {[%clk 0:01:57]} 27. Rd1 {[%clk 0:00:25]}  Qg6 {[%clk 0:01:55]} 28. Qc4+ {[%clk 0:00:23]}  Kh8 {[%clk 0:01:55]} 29. Qc5 {[%clk 0:00:22]}  Qf6 {[%clk 0:01:51]} 30. Nc4 {[%clk 0:00:15]}  Rd8 {[%clk 0:01:48]} 31. Rf1 {[%clk 0:00:15]}  Rfe8 {[%clk 0:01:47]} 32. h4 {[%clk 0:00:15]}  Qd4 {[%clk 0:01:45]} 33. Qb5 {[%clk 0:00:14]}  Qd7 {[%clk 0:01:39]} 34. Nb6 {[%clk 0:00:13]}  Qe6 {[%clk 0:01:35]} 35. Bd5 {[%clk 0:00:11]}  Qf6 {[%clk 0:01:33]} 36. Qc5 {[%clk 0:00:08]}  Nd4 {[%clk 0:01:30]} 37. Bg2 {[%clk 0:00:07]}  Ne2+ {[%clk 0:01:28]} 38. Kh2 {[%clk 0:00:08]}  Qxb2 {[%clk 0:01:27]} 39. Nd5 {[%clk 0:00:07]}  Qd4 {[%clk 0:01:19]} 40. Qb5 {[%clk 0:00:05]}  Re5 {[%clk 0:01:04]} 41. Qxb7 {[%clk 0:00:03]}  Rexd5 {[%clk 0:00:59]} 42. Bxd5 {[%clk 0:00:04]}  Qxd5 {[%clk 0:00:56]} 43. Qxd5 {[%clk 0:00:05]}  Rxd5 {[%clk 0:00:57]} 44. Re1 {[%clk 0:00:06]}  Rd2 {[%clk 0:00:56]} 45. Kg2 {[%clk 0:00:06]}  h6 {[%clk 0:00:56]} 46. Kf1 {[%clk 0:00:07]}  Nd4 {[%clk 0:00:56]} 47. Re8+ {[%clk 0:00:08]}  Kh7 {[%clk 0:00:56]} 48. Rd8 {[%clk 0:00:08]}  Nf3 {[%clk 0:00:56]} 49. Re8 {[%clk 0:00:08]}  Kg6 {[%clk 0:00:55]} 50. Kg2 {[%clk 0:00:09]}  Nd4 {[%clk 0:00:53]} 51. Rd8 {[%clk 0:00:09]}  Nb3 {[%clk 0:00:52]} 52. Rb8 {[%clk 0:00:10]}  Nc5 {[%clk 0:00:52]} 53. Rb6+ {[%clk 0:00:10]}  Kh7 {[%clk 0:00:52]} 54. Rb5 {[%clk 0:00:10]}  Ne4 {[%clk 0:00:52]} 55. Rf5 {[%clk 0:00:11]}  Nd6 {[%clk 0:00:51]} 56. Rf4 {[%clk 0:00:11]}  h5 {[%clk 0:00:49]} 57. Ra4 {[%clk 0:00:11]}  g6 {[%clk 0:00:49]} 58. Ra7+ {[%clk 0:00:11]}  Kg8 {[%clk 0:00:49]} 59. Ra8+ {[%clk 0:00:10]}  Kf7 {[%clk 0:00:49]} 60. Ra7+ {[%clk 0:00:11]}  Ke6 {[%clk 0:00:49]} 61. Ra4 {[%clk 0:00:12]}  Ke5 {[%clk 0:00:48]} 62. Rf4 {[%clk 0:00:12]}  Nf5 {[%clk 0:00:47]} 63. Kf3 {[%clk 0:00:10]}  Rd4 {[%clk 0:00:43]} 64. Rxd4 {[%clk 0:00:07]}  Nxd4+ {[%clk 0:00:44]} 65. Ke3 {[%clk 0:00:08]}  Nf5+ {[%clk 0:00:41]} 66. Kf3 {[%clk 0:00:08]}  Nh6 {[%clk 0:00:42]} 67. Kg2 {[%clk 0:00:08]}  Ng4 {[%clk 0:00:42]} 68. f3 {[%clk 0:00:09]}  Nf6 {[%clk 0:00:42]} 69. Kh3 {[%clk 0:00:07]}  Kd4 {[%clk 0:00:42]} 70. g4 {[%clk 0:00:08]}  Ke3 {[%clk 0:00:42]} 71. Kg3 {[%clk 0:00:06]}  Nd5 {[%clk 0:00:43]} 72. gxh5 {[%clk 0:00:04]}  gxh5 {[%clk 0:00:44]} 73. Kh3 {[%clk 0:00:05]}  Kxf3 {[%clk 0:00:43]} 74. Kh2 {[%clk 0:00:05]}  Kg4 {[%clk 0:00:44]} 75. Kh1 {[%clk 0:00:06]}  Kxh4 {[%clk 0:00:45]} 76. Kg1 {[%clk 0:00:07]}  Kg3 {[%clk 0:00:45]} 77. Kh1 {[%clk 0:00:08]}  h4 {[%clk 0:00:46]} 78. Kg1 {[%clk 0:00:09]}  h3 {[%clk 0:00:46]} 79. Kh1 {[%clk 0:00:10]}  Nf4 {[%clk 0:00:43]} 80. Kg1 {[%clk 0:00:11]}  Nd3 {[%clk 0:00:44]} 81. Kh1 {[%clk 0:00:12]}  Nf2+ {[%clk 0:00:43]} 82. Kg1 {[%clk 0:00:13]}  h2+ {[%clk 0:00:44]} 83. Kf1 {[%clk 0:00:13]}  h1=Q+ {[%clk 0:00:45]} 0-1


[Site "https://www.chess.com"]